[Event "Qatar Masters 2024"]
[Site "Doha"]
[Date "2024.12.03"]
[Round "1.6"]
[White "Esipenko, Andrey"]
[Black "Bharadia Yash"]
[Result "1-0"]
[Annotator "TA"]
[ECO "B51"]
[WhiteElo "2682"]
[BlackElo "2385"]
[PlyCount "91"]
[EventDate "2024.11.24"]
[EventType "swiss"]
[EventCountry "QAT"]
[SourceTitle "playchess.com"]
[Source "ChessBase"]
[SourceQuality "1"]
[TimeControl "40/5400+30:1800+30"]

{[%evp 14,91,0,0,0,-10,-7,-7,-17,-21,-6,0,-6,-2,0,-13,-4,-12,-8,-11,0,0,-1,-5,16,-12,0,0,6,0,36,47,41,21,49,34,47,47,79,83,81,77,103,60,74,65,159,159,241,149,202,225,194,194,197,164,356,356,341,320,345,350,307,296,337,328,337,357,350,313,486,482,477,358,2014,1806,29992,29993,29993,29994]} 1. e4 {[%emt 0:00:09]} c5 {[%emt 0:00:46]} 2. Nf3 {[%emt 0:00:30]} d6 {[%emt 0:00:07]} 3. Bb5+ {[%emt 0:00:17]} Nd7 {[%emt 0:01:45]} 4. Ba4 {[%emt 0:00:29]} Ngf6 {[%emt 0:03:14]} 5. O-O {[%emt 0:00:21]} e6 {[%emt 0:05:14]} 6. d3 {[%emt 0:00:20] B51: Sicilian: Moscow Variation (3 Bb5+) without 3...Bd7.} Be7 {[%emt 0:00:17]} 7. c4 {[%emt 0:00:09]} O-O {[%emt 0:00:46]} 8. Nc3 {[%emt 0:00:34]} Ne5 {[%emt 0:08:16]} 9. Ne1 {[%emt 0:01:53]} Bd7 {[%emt 0:00:59]} 10. Bc2 {[%emt 0:01:29]} Nc6 {[%emt 0:01:36]} 11. f4 {[%emt 0:00:06]} Nd4 {[%emt 0:00:44]} 12. Nf3 {[%emt 0:00:05]} Nxc2 {[%emt 0:02:46]} 13. Qxc2 {[%emt 0:00:12]} a6 $146 {[%emt 0:00:56]} ({Predecessor:} 13... Bc6 14. Kh1 Qd7 15. a4 b6 16. Qe2 a6 17. Bd2 b5 18. e5 Ng4 19. exd6 Bxd6 {0-1 Shubin,K (2459)-Volokitin,A (2667) FIDE World Rapid Team 2024 (12.14)}) 14. b3 {[%emt 0:03:19]} b5 {[%emt 0:01:57]} 15. Bb2 {[%emt 0:00:38]} Bc6 {[%emt 0:05:26]} 16. Rae1 {[%emt 0:03:31]} b4 {[%emt 0:07:48]} 17. Nd1 {[%emt 0:00:22]} a5 {[%emt 0:01:54]} 18. Ne3 {[%emt 0:00:33]} a4 {[%emt 0:01:08]} 19. f5 {[%emt 0:02:26]} axb3 {[%emt 0:01:41]} 20. axb3 {[%emt 0:00:03]} e5 {[%emt 0:00:45]} 21. g4 {[%emt 0:01:32]} Nd7 {[%emt 0:00:32]} 22. Qf2 {[%emt 0:02:11]} Ra2 {[%emt 0:09:24]} 23. h4 {[%emt 0:01:24]} f6 {[%emt 0:04:06]} 24. Ra1 {[%emt 0:05:22]} Rxa1 {[%emt 0:02:47]} 25. Rxa1 {[%emt 0:00:19]} Kf7 {[%emt 0:01:59]} 26. Qg3 {[%emt 0:02:38]} h6 {[%emt 0:01:59]} 27. Bc1 {[%emt 0:00:29]} Rh8 {[%emt 0:03:27]} 28. Ng2 {[%emt 0:03:16]} Nf8 {[%emt 0:15:26]} 29. g5 {[%emt 0:00:29]} (29. Ra2 {simplifies} Nd7 30. g5 hxg5 31. hxg5 Kg8 32. Bd2) 29... h5 {[%emt 0:00:13]} ({Black should play} 29... hxg5 $14 30. hxg5 Ke8) 30. Ra7 $16 {[%emt 0:02:28]} Rg8 {[%emt 0:02:59]} (30... Ke8 $16 {is a better defense.} 31. g6 Qb8) 31. Qf2 {[%emt 0:01:19]} Qb6 {[%emt 0:01:16]} (31... Qc8 $16 32. g6+ Ke8) 32. Qa2 $18 {[%emt 0:00:10]} Nd7 {[%emt 0:00:41]} 33. g6+ {[%emt 0:03:39]} Ke8 {[%emt 0:00:14]} 34. Ne3 {[%emt 0:00:10]} Bd8 $2 {[%emt 0:03:42] [#]} (34... Bb7 {was necessary.} 35. Nd2 Bd8) 35. Nd5 $1 $18 {[%emt 0:02:28]} Bxd5 {[%emt 0:06:03]} 36. exd5 {[%emt 0:00:12]} ({But not} 36. cxd5 c4+ 37. Kg2 Ke7 38. dxc4 Bc7) 36... Bc7 {[%emt 0:00:20]} 37. Nd2 {[%emt 0:03:17]} Ke7 {[%emt 0:02:00]} 38. Ne4 {[%emt 0:00:06]} Bb8 {[%emt 0:00:54]} 39. Ra6 {[%emt 0:01:14]} ({Don't take} 39. Ra8 Qb7 40. Ra6 Qc8) 39... Qb7 {[%emt 0:00:21]} 40. Be3 {[%emt 0:00:12]} Rc8 {[%emt 0:01:01]} 41. Kh2 {[%emt 0:30:17]} Nb6 {[%emt 0:07:24]} (41... Bc7 $142 42. Ra7 Qb6) 42. Qa5 $18 {[%emt 0:00:00]} Nd7 {[%emt 0:05:54]} 43. Qa4 {[%emt 0:00:00]} Bc7 $2 {[%emt 0:01:23]} (43... Nf8 44. Ng3 Nd7 45. Nxh5 Rg8) 44. Bxc5 $18 {[%emt 0:00:00]} Nxc5 {[%emt 0:02:37]} 45. Nxc5 {[%emt 0:00:00]} dxc5 {[%emt 0:00:44]} 46. Re6+ {[%emt 0:00:00]} 1-0

[Event "Qatar Masters 2024"]
[Site "Doha"]
[Date "2024.12.03"]
[Round "1.7"]
[White "Pham, Le Thao Nguyen"]
[Black "Vokhidov, Shamsiddin"]
[Result "0-1"]
[Annotator "RC"]
[ECO "A47"]
[WhiteElo "2384"]
[BlackElo "2681"]
[PlyCount "136"]
[EventDate "2024.11.24"]
[EventType "swiss"]
[EventCountry "QAT"]
[SourceTitle "playchess.com"]
[Source "ChessBase"]
[SourceQuality "1"]
[TimeControl "40/5400+30:1800+30"]

1. d4 {[%emt 0:00:05]} Nf6 {[%emt 0:00:05]} 2. Nf3 {[%emt 0:00:33]} b6 {[%emt 0:00:14]} 3. Bg5 {[%emt 0:02:59]} e6 {[%emt 0:03:23]} 4. Nbd2 {[%emt 0:04:30]} Bb7 {[%emt 0:01:42]} 5. e3 {[%emt 0:01:27]} h6 {[%emt 0:00:34]} 6. Bh4 {[%emt 0:01:12]} g5 {[%emt 0:01:54]} 7. Bg3 {[%emt 0:00:58]} Nh5 {[%emt 0:00:13]} 8. Ne5 {[%emt 0:04:23]} Nxg3 {[%emt 0:01:32]} 9. hxg3 {[%emt 0:00:31]} d6 {[%emt 0:00:35]} 10. Nef3 {[%emt 0:04:05]} Bg7 {[%emt 0:02:22]} 11. c3 {[%emt 0:00:32]} Nd7 {[%emt 0:04:34]} 12. Bd3 {[%emt 0:01:35]} g4 {[%emt 0:01:40]} 13. Nh4 {[%emt 0:02:10]} h5 {[%emt 0:00:10]} 14. Qe2 {[%emt 0:01:29]} a6 {[%emt 0:00:22]} 15. O-O-O {[%emt 0:07:46]} c5 {[%emt 0:05:06]} 16. Kb1 {[%emt 0:08:55]} b5 {[%emt 0:06:14]} 17. f3 {[%emt 0:09:50]} Nf6 {[%emt 0:03:49]} 18. e4 {[%emt 0:07:13]} Qc7 {[%emt 0:07:23]} 19. d5 {[%emt 0:10:25]} O-O-O {[%emt 0:08:51]} 20. dxe6 {[%emt 0:03:17]} fxe6 {[%emt 0:00:07]} 21. Ng6 {[%emt 0:02:57]} Rh6 {[%emt 0:00:21]} 22. e5 {[%emt 0:03:07]} dxe5 {[%emt 0:07:27]} 23. Nxe5 {[%emt 0:02:02]} Nd5 {[%emt 0:07:37]} 24. f4 {[%emt 0:06:42]} c4 {[%emt 0:02:00]} 25. Bc2 {[%emt 0:01:03]} Kb8 {[%emt 0:00:29]} 26. a3 {[%emt 0:02:41]} Rhh8 {[%emt 0:04:10]} 27. Ng6 {[%emt 0:04:03]} Bxc3 {[%emt 0:06:29]} 28. Ne4 {[%emt 0:00:33]} Bg7 {[%emt 0:06:36]} 29. Nxh8 {[%emt 0:00:37]} Rxh8 {[%emt 0:01:13]} 30. Ng5 {[%emt 0:01:12]} b4 {[%emt 0:01:36]} 31. Nxe6 {[%emt 0:00:58]} Qb6 {[%emt 0:02:31]} 32. Rxd5 {[%emt 0:02:27]} bxa3 {[%emt 0:01:05]} 33. Bf5 {[%emt 0:00:25]} Bxb2 {[%emt 0:01:34]} 34. Rd7 {[%emt 0:03:49]} Bc8 {[%emt 0:03:10]} 35. Rd2 {[%emt 0:00:39]} Bc3+ {[%emt 0:03:04]} 36. Kc1 {[%emt 0:00:05]} Bxd2+ {[%emt 0:01:34]} 37. Kxd2 {[%emt 0:00:17]} Qa5+ {[%emt 0:00:29]} 38. Kc1 {[%emt 0:01:19]} Qxf5 {[%emt 0:00:08]} 39. Nd4 {[%emt 0:00:14]} Qc5 {[%emt 0:00:49]} 40. Qe5+ {[%emt 0:00:26]} Qxe5 {[%emt 0:00:06]} 41. fxe5 {[%emt 0:30:05]} Bb7 {[%emt 0:32:31]} 42. e6 {[%emt 0:00:00]} Kc7 {[%emt 0:00:00]} 43. Re1 {[%emt 0:00:00]} Re8 {[%emt 0:00:00]} 44. Re3 {[%emt 0:00:00]} Bxg2 {[%emt 0:00:00]} 45. Rxa3 {[%emt 0:00:00]} Bb7 {[%emt 0:00:00]} 46. Kd2 {[%emt 0:00:00]} Bc8 {[%emt 0:00:00]} 47. Ra5 {[%emt 0:00:00]} Bxe6 {[%emt 0:00:00]} 48. Rxa6 {[%emt 0:00:00]} Bd5 {[%emt 0:00:00]} 49. Rh6 {[%emt 0:00:00]} Re5 {[%emt 0:00:00]} 50. Ne2 {[%emt 0:00:38]} Kd7 {[%emt 0:00:00]} 51. Rh7+ {[%emt 0:00:38]} Ke8 {[%emt 0:00:00]} 52. Nf4 {[%emt 0:01:46]} Bf7 {[%emt 0:00:00]} 53. Rh8+ {[%emt 0:01:01]} Ke7 {[%emt 0:00:00]} 54. Rh6 {[%emt 0:00:51]} Kf8 {[%emt 0:00:00]} 55. Rf6 {[%emt 0:00:52]} Kg7 {[%emt 0:00:00]} 56. Rc6 {[%emt 0:00:16]} Ra5 {[%emt 0:00:00]} 57. Ne2 {[%emt 0:01:42]} Rf5 {[%emt 0:00:46]} 58. Ke3 {[%emt 0:01:01]} Rf3+ {[%emt 0:01:06]} 59. Ke4 {[%emt 0:00:34]} Rd3 {[%emt 0:02:12]} 60. Rc7 {[%emt 0:00:39]} Kf6 {[%emt 0:00:05]} 61. Rc6+ {[%emt 0:00:21]} Kg5 {[%emt 0:00:07]} 62. Rc5+ {[%emt 0:00:34]} Kh6 {[%emt 0:00:01]} 63. Nf4 {[%emt 0:00:54]} Rxg3 {[%emt 0:00:28]} 64. Kf5 {[%emt 0:00:14]} Ra3 {[%emt 0:01:41]} 65. Kf6 {[%emt 0:00:42]} Rf3 {[%emt 0:00:31]} 66. Rf5 {[%emt 0:00:34]} Bg6 {[%emt 0:01:37]} 67. Nxg6 {[%emt 0:00:32]} Rxf5+ {[%emt 0:00:03]} 68. Kxf5 {[%emt 0:00:06]} c3 {[%emt 0:00:17]} 0-1

[Event "Qatar Masters 2024"]
[Site "Doha"]
[Date "2024.12.03"]
[Round "1.8"]
[White "Nihal Sarin"]
[Black "Bukreev, Stanislav"]
[Result "1-0"]
[Annotator "TA"]
[ECO "D35"]
[WhiteElo "2676"]
[BlackElo "2384"]
[PlyCount "63"]
[EventDate "2024.11.24"]
[EventType "swiss"]
[EventCountry "QAT"]
[SourceTitle "playchess.com"]
[Source "ChessBase"]
[SourceQuality "1"]
[TimeControl "40/5400+30:1800+30"]

{[%evp 12,63,20,18,16,0,2,-37,-10,-33,0,0,0,0,0,0,-4,0,0,0,0,0,-18,-8,0,0,27,10,0,-4,0,0,9,6,4,0,0,0,0,0,105,105,105,105,590,562,29967,29968,29984,29985,29985,29986,29985,29986]} 1. d4 {[%emt 0:00:10]} d5 {[%emt 0:00:03]} 2. c4 {[%emt 0:00:14]} e6 {[%emt 0:00:04]} 3. Nc3 {[%emt 0:00:05]} Nf6 {[%emt 0:00:05]} 4. cxd5 {[%emt 0:00:05]} Nxd5 {[%emt 0:00:03]} 5. e4 {[%emt 0:00:18]} Nxc3 {[%emt 0:00:07]} 6. bxc3 {[%emt 0:00:06]} c5 {[%emt 0:00:03]} 7. Rb1 {[%emt 0:00:07]} Be7 {[%emt 0:00:04]} 8. Nf3 {[%emt 0:00:06]} O-O {[%emt 0:00:04]} 9. h4 {[%emt 0:00:05]} b6 {[%emt 0:00:03] Black is slightly better.} 10. h5 {[%emt 0:00:45]} h6 {[%emt 0:00:03]} 11. Rh3 {[%emt 0:00:07]} Kh8 {[%emt 0:00:02]} 12. Rg3 {[%emt 0:02:44]} cxd4 {[%emt 0:00:04]} 13. cxd4 {[%emt 0:00:06]} Bb7 {[%emt 0:00:01]} 14. Bd3 {[%emt 0:00:09]} Nd7 {[%emt 0:00:03]} 15. e5 {[%emt 0:07:07]} Rc8 {[%emt 0:00:03][%cal Ba8c8,Bc8c3,Bc3d3,Bd3d4][%mdl 32]} 16. Kf1 {[%emt 0:00:39]} f5 {[%emt 0:12:00]} 17. exf6 {[%emt 0:03:47]} Bxf6 {[%emt 0:01:39]} 18. Bf4 {[%emt 0:26:18]} Bxf3 {[%emt 0:34:41]} 19. Qxf3 {[%emt 0:06:57] Qe4 would kill now.} (19. Rxf3 {simplifies} Bg5 20. Bd6 Rxf3 21. Qxf3 Nf6 22. Be5) 19... Bh4 {[%emt 0:10:07]} 20. Rg6 {[%emt 0:10:56][%cal Of3e4] And now Qe4! would win.} (20. Rg4 $5 Bg5 $8 21. Re1 $11) 20... Rc3 {[%emt 0:06:23][%cal Od7c5] Hoping for ...Nc5!} (20... Bg5 $2 21. Qe4 Rf7 (21... Bxf4 22. Rxh6+ Kg8 23. Qh7+ Kf7 24. Qg6+ Kg8 25. Rh8+ Kxh8 26. Qh7#) 22. Rxe6 $18 (22. Qxe6 $2 Rxf4 23. Bf5 Qf8 $19) (22. Rxg5 Nf6 $18)) 21. g3 {[%emt 0:11:34]} (21. Rxe6 Rxd3 (21... Rxf4 $2 22. Qxf4 Rxd3 23. Rbe1 $18) 22. Qxd3 Rxf4 $17 (22... Nc5 23. Rxh6+ gxh6 24. Be5+ Bf6 25. Qe3 $17)) 21... Nc5 {[%emt 0:12:09] Against Rb3} 22. dxc5 {[%emt 0:03:55]} (22. gxh4 $2 Rxd3 $19 (22... Nxd3 23. Qb7 $17) (22... Nxd3 23. Qb7 $17)) (22. Rd1 {simplifies} Rxd3 23. Rxd3 Nxd3 24. Qxd3 Bf6 25. Qe4) 22... Rxd3 {[%emt 0:01:30]} 23. Qg4 {[%emt 0:03:21]} Bf6 {[%emt 0:06:52]} 24. cxb6 {[%emt 0:00:14]} Qd5 {[%emt 0:01:13]} 25. Kg1 {[%emt 0:01:04] Prevents Qh1+} (25. bxa7 Qh1+ (25... Qxa2 $2 26. Rb8 $18) 26. Ke2 Qxb1) 25... axb6 {[%emt 0:04:34] [#]} (25... Bd4 $1 $11 {keeps the balance.} 26. Qxe6 (26. Rxe6 Bxf2+ 27. Kh2 Be3 $17) 26... Bxf2+ (26... Qf3 27. Rxh6+ gxh6 28. Qxh6+ Kg8 29. Qg5+ Kh7 30. Qe7+ Bg7 31. h6 $11) 27. Kxf2 Qc5+ 28. Ke1 (28. Kf1 Rf3+ 29. Kg2 Rf2+ 30. Kg1 R2xf4+ 31. Kh1 Rf1+ 32. Rxf1 Rxf1+ 33. Kh2 Rf2+ 34. Kg1 Rxa2+) 28... Rxf4 (28... Qxh5 29. Qc6 $14) (28... Qg1+ $2 29. Ke2 $18) 29. gxf4 (29. Rxh6+ $2 gxh6 30. Qxh6+ Kg8 $19) 29... Re3+ (29... Qxh5 30. Qe8+ Kh7 31. Rxg7+ Kxg7 32. Qxh5 Rg3 33. bxa7 Rg1+ 34. Kf2 Rxb1 35. a8=Q) 30. Kf1 Rxe6 31. Rxe6 Qc4+ (31... Qxh5 32. b7 $16) 32. Re2 Qxf4+ 33. Rf2 Qe4) 26. Bxh6 $1 $16 {[%emt 0:04:52][%cal Og6f6][%mdl 512] Rxf6! is the strong threat.} Rd4 {[%emt 0:01:24]} 27. Bf4 $40 {[%emt 0:00:06][%mdl 128] h6 would now be deadly. White wants a kill.} (27. Bxg7+ $2 Bxg7 28. h6 Bf6 (28... Qxa2 29. hxg7+ Kg8 30. gxf8=Q+ Kxf8 31. Qf3+) 29. Rxf6 Rxg4 $19) 27... e5 $2 {[%emt 0:00:43][%mdl 8192] [#] This move loses the game for Black.} (27... Qe4 $16 {is more resistant.} 28. Rc1 (28. Rxb6 $2 Rfd8 $19) 28... Rg8) 28. h6 $1 $18 {[%emt 0:00:40][%cal Og6f6] Intending Rxf6! and mate.} exf4 {[%emt 0:07:46] [#]} (28... Rf7 29. Qh5) 29. Rxf6 $1 {[%emt 0:00:28][%csl Gh6][%cal Rg4g7][%mdl 512] White mates.} Rg8 {[%emt 0:00:03]} (29... Rd1+ 30. Rxd1) 30. hxg7+ {[%emt 0:00:31]} Rxg7 {[%emt 0:00:17]} 31. Rf8+ {[%emt 0:00:10]} Rg8 {[%emt 0:00:11]} 32. Qh4+ {[%emt 0:00:11] Weighted Error Value: White=0.04 (flawless) /Black=0.51.  Loses game:     	---       	Black=1      Mistake:       	---       	Black=1      Inaccurate:     	White=1     	Black=3      OK:         	White=6     	Black=13     Best:        	White=1     	---        Strong:       	White=1     	---        Brilliant:      	White=2     	---} (32. Rxf4 Rxg4 33. Rxg4 Rd1+ 34. Rxd1 Qxd1+ 35. Kh2 Qxg4 36. Kg2 b5 (36... Qe4+ {leads to mate.} 37. f3 Qe2+ 38. Kg1 Qxa2 39. f4 b5 40. f5 b4 41. f6 Qc2 42. g4 b3 43. f7 Kg7 44. Kf1 b2 45. f8=B+ Kxf8 46. g5 b1=Q#) 37. f3 Qa4 38. Kh3 Qxa2 39. f4 b4 (39... Qe6+ {is a self mate.} 40. g4 Qe3+ 41. Kg2 Qxf4 42. Kh3 b4 43. g5 b3 44. Kg2 b2 45. g6 b1=Q 46. g7+ Kxg7 47. Kh3 Qh1#) 40. f5 b3 41. Kg4 b2 42. Kg5 b1=Q (42... b1=B 43. Kf4 Qe2 44. g4 Kg7 45. g5 Qe4+ 46. Kg3 Qxf5 47. g6 Be4 48. Kh4 Qxg6 49. Kh3 Qg5 50. Kh2 Qg2#) 43. g4 Qh2 44. Kf6 Qd6+ 45. Kf7 Qb7+ 46. Ke8 Qde7#) 1-0

[Event "Qatar Masters 2024"]
[Site "Doha"]
[Date "2024.12.03"]
[Round "1.9"]
[White "Moksh Amit Doshi"]
[Black "Yakubboev, Nodirbek"]
[Result "1-0"]
[Annotator "TA"]
[ECO "E95"]
[WhiteElo "2391"]
[BlackElo "2668"]
[PlyCount "76"]
[EventDate "2024.11.24"]
[EventType "swiss"]
[EventCountry "QAT"]
[SourceTitle "playchess.com"]
[Source "ChessBase"]
[SourceQuality "1"]
[TimeControl "40/5400+30:1800+30"]

{[%evp 17,76,31,60,22,70,70,77,95,98,54,102,127,139,161,178,186,174,190,250,244,283,292,295,284,306,294,283,289,271,234,293,295,328,327,299,302,439,460,492,462,459,463,471,470,492,339,497,341,605,606,803,801,904,823,823,808,1167,1139,1236,1119,1116]} 1. d4 {[%emt 0:00:08]} Nf6 {[%emt 0:00:48]} 2. c4 {[%emt 0:00:11]} d6 {[%emt 0:00:12]} 3. Nf3 {[%emt 0:01:56]} g6 {[%emt 0:01:20]} 4. Nc3 {[%emt 0:00:08]} Bg7 {[%emt 0:01:46]} 5. e4 {[%emt 0:00:10]} O-O {[%emt 0:00:07]} 6. Be2 {[%emt 0:00:06]} e5 {[%emt 0:00:15]} 7. O-O {[%emt 0:00:17]} h6 {[%emt 0:00:24]} 8. Re1 {[%emt 0:00:46]} Nbd7 {[%emt 0:00:30]} 9. Bf1 {[%emt 0:00:19]} Nh7 {[%emt 0:02:12]} 10. dxe5 {[%emt 0:01:41]} dxe5 {[%emt 0:00:43]} (10... Nxe5 $11 {deserves consideration.} 11. Nxe5 Bxe5 (11... dxe5 12. Qxd8 Rxd8 13. Nb5 $14)) 11. Be3 $14 {[%emt 0:05:28]} f5 {[%emt 0:04:35]} 12. exf5 {[%emt 0:07:48] White is better.} gxf5 {[%emt 0:00:08]} 13. g3 {[%emt 0:04:28] White is much more active. The black rooks are passive.} c6 {[%emt 0:12:20]} (13... e4 $14 {might be stronger.}) 14. c5 {[%emt 0:08:42]} e4 {[%emt 0:08:34]} 15. Qb3+ $1 {[%emt 0:01:44]} Kh8 {[%emt 0:00:18]} 16. Nh4 $36 {[%emt 0:00:17][%mdl 2048] White is really pushing.} Qe8 {[%emt 0:08:55] Wards off Ng6+} 17. Rad1 {[%emt 0:02:21]} Ne5 {[%emt 0:03:25] [#]} (17... Ng5 $142) 18. f4 $1 $18 {[%emt 0:05:30]} Ng6 {[%emt 0:22:12][%cal Be5g6,Bg6h4,Bh4f3][%mdl 32] [#]} 19. Rd8 $3 {[%emt 0:06:06][%mdl 512]} Nxh4 {[%emt 0:01:07]} 20. Rxe8 {[%emt 0:00:09]} Nf3+ {[%emt 0:00:03]} 21. Kf2 {[%emt 0:03:43]} Rxe8 {[%emt 0:00:17] [#]} 22. Rd1 {[%emt 0:02:10]} Nxh2 {[%emt 0:07:17]} 23. Bd4 {[%emt 0:04:27] And now Be2 would win.} Ng4+ {[%emt 0:01:13]} 24. Ke1 {[%emt 0:02:09]} Re7 {[%emt 0:10:41]} 25. Bxg7+ {[%emt 0:03:02]} Kxg7 {[%emt 0:00:01]} 26. Rd6 {[%emt 0:01:30] Dodges Be6} Nf8 {[%emt 0:02:27]} (26... Nhf6 $142 27. Be2 h5 28. Bxg4 hxg4) 27. Ne2 {[%emt 0:01:37]} Be6 {[%emt 0:01:25]} 28. Qc3+ {[%emt 0:01:21]} Kh7 {[%emt 0:02:06]} 29. Nd4 {[%emt 0:04:25]} Rae8 {[%emt 0:00:32]} 30. Be2 {[%emt 0:01:12]} (30. Bh3 Rd7 31. Nxe6 Rxe6 32. Bxg4 fxg4) 30... h5 {[%emt 0:01:11]} 31. Bd1 {[%emt 0:03:55]} a6 {[%emt 0:03:32]} (31... Rg7 $142 32. b4 (32. Bxg4 Rxg4 33. Nxe6 Rxe6 $18) 32... a6 33. Rxe6 (33. Bxg4 Rxg4 34. Nxe6 Rxe6 $18) 33... Rxe6 34. Nxf5 (34. Nxe6 Nxe6 35. Bxg4 Rxg4 $18) 34... Rd7) 32. Qc2 {[%emt 0:04:40] Qg2 is the strong threat.} Rg7 $2 {[%emt 0:03:29]} (32... Kg6 33. Bxg4 hxg4) 33. Qg2 {[%emt 0:01:54] White is clearly winning.} Rg6 {[%emt 0:01:13][%cal Bg7g6,Bg6h6,Bh6h1][%mdl 32]} 34. Qh3 {[%emt 0:02:43]} h4 {[%emt 0:01:00] [#]} 35. Rd8 $3 {[%emt 0:03:48][%mdl 512]} Rxd8 {[%emt 0:00:43]} 36. Qxh4+ {[%emt 0:00:05]} Rh6 {[%emt 0:00:45]} 37. Qxd8 {[%emt 0:00:05]} Rh1+ {[%emt 0:00:37]} 38. Kd2 {[%emt 0:00:09]} e3+ {[%emt 0:00:00] Weighted Error Value: White=0.19 (very precise) /Black=0.57.  Mistake:       	---       	Black=6      Inaccurate:     	White=3     	Black=1      OK:         	White=9     	Black=2      Best:        	White=3     	Black=2      Strong:       	White=2     	---        Brilliant:      	White=1     	---} 1-0

[Event "Qatar Masters 2024"]
[Site "Doha"]
[Date "2024.12.03"]
[Round "1.10"]
[White "Martirosyan, Haik M."]
[Black "Panda Sambit"]
[Result "1-0"]
[Annotator "TA"]
[ECO "D26"]
[WhiteElo "2676"]
[BlackElo "2380"]
[PlyCount "91"]
[EventDate "2024.11.24"]
[EventType "swiss"]
[EventCountry "QAT"]
[SourceTitle "playchess.com"]
[Source "ChessBase"]
[SourceQuality "1"]
[TimeControl "40/5400+30:1800+30"]

{[%evp 12,91,33,0,6,7,11,13,20,13,2,18,24,27,33,31,49,12,37,23,33,25,35,27,37,0,0,6,23,0,43,62,51,56,185,181,227,229,222,191,258,258,267,246,296,297,313,258,326,326,318,281,329,302,343,356,366,398,387,385,403,398,399,390,381,359,363,354,356,364,358,367,426,452,443,455,466,456,468,468,466,466]} 1. d4 {[%emt 0:00:26]} d5 {[%emt 0:00:15]} 2. c4 {[%emt 0:00:33]} dxc4 {[%emt 0:00:30]} 3. Nf3 {[%emt 0:01:13]} Nf6 {[%emt 0:00:10]} 4. e3 {[%emt 0:00:12]} e6 {[%emt 0:00:08]} 5. Bxc4 {[%emt 0:00:10]} c5 {[%emt 0:00:04]} 6. O-O {[%emt 0:00:54]} cxd4 {[%emt 0:00:22]} 7. Nxd4 {[%emt 0:00:42]} Bc5 {[%emt 0:00:05]} 8. b3 {[%emt 0:11:55]} O-O {[%emt 0:02:44]} 9. Bb2 {[%emt 0:01:04]} Qe7 {[%emt 0:00:05] The position is equal.} 10. Nd2 {[%emt 0:04:53]} Rd8 {[%emt 0:01:35]} 11. Qc2 {[%emt 0:06:40]} b6 {[%emt 0:39:13][%cal Bb7b6,Bb6b5][%mdl 32]} 12. Ne4 {[%emt 0:16:08]} Bxd4 {[%emt 0:13:01]} 13. Bxd4 {[%emt 0:01:47] [#] Threatens to win with Nxf6+.} Nbd7 {[%emt 0:00:06]} 14. Ng3 {[%emt 0:07:01]} Bb7 {[%emt 0:01:28]} 15. Rad1 {[%emt 0:01:06]} a6 {[%emt 0:04:07]} 16. e4 {[%emt 0:05:23]} b5 {[%emt 0:03:49]} 17. Be2 {[%emt 0:01:58]} Rac8 {[%emt 0:04:10] Wards off Qc7} 18. Qb1 {[%emt 0:00:24]} Nc5 {[%emt 0:02:12]} 19. Bf3 {[%emt 0:03:05]} Nfd7 {[%emt 0:05:29]} 20. Qb2 {[%emt 0:01:54]} e5 {[%emt 0:00:40]} 21. Bc3 {[%emt 0:02:54] A strong pair of Bishops.} g6 {[%emt 0:00:25]} 22. Bb4 {[%emt 0:05:14]} Qg5 {[%emt 0:15:59] [#] Black cannot hold the game after this.} (22... Rc6 $14) 23. Qd2 $1 $18 {[%emt 0:06:26]} Qh4 {[%emt 0:04:25]} (23... Qf6 {was worth a try.} 24. Qe3 Ne6) 24. Ba5 {[%emt 0:02:09]} Ne6 {[%emt 0:00:48]} 25. Qe3 {[%emt 0:04:27]} Nd4 {[%emt 0:00:16]} (25... h5 $142 26. Rd2 (26. Bxd8 Qxd8 27. Ne2 Qe7 $18) 26... Ndf8) 26. Bxd8 {[%emt 0:00:08]} Rxd8 {[%emt 0:00:06]} 27. Ne2 {[%emt 0:03:49]} Nxf3+ {[%emt 0:00:23]} 28. Qxf3 {[%emt 0:01:00]} Bxe4 {[%emt 0:00:06][%cal Bb7e4,Be4f5,Bf5e6][%mdl 32]} 29. Qe3 {[%emt 0:00:28] Strongly threatening g3.} Bf5 {[%emt 0:01:15]} 30. Ng3 {[%emt 0:01:35]} Be6 {[%emt 0:00:01]} 31. Qa7 {[%emt 0:00:59]} Qe7 {[%emt 0:00:26]} 32. Ne4 {[%emt 0:02:05]} Kf8 {[%emt 0:00:21]} 33. Qxa6 {[%emt 0:00:36]} Rb8 {[%emt 0:00:24]} 34. Qa7 {[%emt 0:00:35][%cal Od1d7] And now Rxd7! would win.} Rc8 {[%emt 0:00:45]} 35. Rc1 {[%emt 0:02:03] Repels Nc5} Rxc1 {[%emt 0:00:23]} 36. Rxc1 {[%emt 0:00:02]} Kg7 {[%emt 0:00:21]} 37. Rd1 {[%emt 0:02:35]} Qb4 {[%emt 0:01:41]} 38. Qe3 {[%emt 0:00:51]} h6 {[%emt 0:00:13]} 39. f3 {[%emt 0:00:56]} Qa5 {[%emt 0:00:09]} 40. Qf2 {[%emt 0:01:52]} b4 {[%emt 0:00:06]} 41. h3 {[%emt 0:31:33]} Nb6 {[%emt 0:01:44]} 42. Qc5 {[%emt 0:00:00] White is clearly winning.} Qxc5+ {[%emt 0:04:24]} 43. Nxc5 {[%emt 0:00:00]} Nd5 {[%emt 0:00:29]} 44. Nxe6+ {[%emt 0:00:00]} fxe6 {[%emt 0:00:04]} 45. Re1 {[%emt 0:00:00]} Kf6 {[%emt 0:00:05]} 46. Re4 {[%emt 0:00:00] Weighted Error Value: White=0.10 (very precise) /Black=0.18 (very precise) .  Mistake:       	---       	Black=3      Inaccurate:     	White=2     	Black=1      OK:         	White=18    	Black=15     Best:        	White=3     	Black=1      Strong:       	White=1     	---} 1-0